bitfinex/quotes_SOLUSD_20250219
["timestamp","ask_amount","ask_price","bid_price","bid_amount"]
[1739999706824,0.063,167.28,167.27,37.52946933]
[1739999706999,0.063,167.28,167.27,56.17911819]
[1739999707719,0.063,167.28,167.27,37.52946933]
[1739999708123,0.063,167.28,167.27,27.6141]
[1739999709324,0.063,167.28,167.27,46.26374886]
[1739999709526,0.063,167.28,167.27,27.6141]
[1739999710128,0.063,167.28,167.27,85.4883]
[1739999711626,0.063,167.28,167.27,104.13794886]
[1739999712123,0.063,167.28,167.27,114.05331819]
[1739999713817,0.063,167.28,167.27,104.13794886]
[1739999714027,0.063,167.28,167.27,79.51]
[1739999714408,0.063,167.28,167.27,85.4883]
[1739999714914,0.063,167.28,167.27,104.13794886]
[1739999715406,0.063,167.28,167.27,85.4883]
[1739999716695,0.063,167.28,167.27,114.05331819]
[1739999718531,0.063,167.28,167.27,104.13794886]
[1739999719256,0.063,167.28,167.27,114.05331819]
[1739999720725,0.063,167.28,167.27,121.68481819]
[1739999723261,0.063,167.28,167.27,79.51]
[1739999723659,0.063,167.28,167.27,85.4883]
[1739999742164,0.063,167.28,167.27,104.13794886]
[1739999742665,0.063,167.28,167.27,114.05331819]
[1739999747766,0.063,167.28,167.27,104.13794886]
[1739999752785,0.063,167.28,167.27,114.05331819]
[1739999759166,0.063,167.28,167.27,104.13794886]
[1739999759874,0.063,167.28,167.27,85.4883]
[1739999769588,9.97836933,167.28,167.24,0.03]
[1739999769889,9.91536933,167.25,167.24,0.03]
[1739999770389,0.063,167.28,167.24,6.0093]
[1739999771390,9.97836933,167.28,167.24,6.0093]
[1739999771587,9.97836933,167.28,167.24,0.03]
[1739999771588,9.91536933,167.26,167.24,0.03]
[1739999771788,9.91536933,167.25,167.24,0.03]
[1739999772226,16.03886933,167.25,167.24,0.03]
[1739999772565,100.03886933,167.25,167.24,0.03]
[1739999772771,1.0,167.24,167.23,0.03]
[1739999773016,2.0,167.23,167.2,0.03]
[1739999773205,49.57684665,167.21,167.2,0.03]
[1739999773411,9.91536933,167.21,167.2,0.03]
[1739999773788,15.89586933,167.21,167.2,0.03]
[1739999775095,55.55734665,167.21,167.2,0.03]
[1739999775505,15.89586933,167.21,167.2,0.03]
[1739999776993,9.91536933,167.21,167.2,0.03]
[1739999777214,9.91536933,167.22,167.2,0.03]
[1739999777498,9.91536933,167.24,167.2,0.03]
[1739999777795,97.53536933,167.25,167.2,0.03]
[1739999777994,4.62,167.25,167.2,95.43616933]
[1739999778206,9.97836933,167.28,167.22,9.91536933]
[1739999779006,9.91536933,167.24,167.2,79.54]
[1739999779211,9.91536933,167.21,167.2,0.03]
[1739999782486,9.91536933,167.23,167.2,0.03]
[1739999782993,4.62,167.25,167.21,20.0]
[1739999783187,9.91536933,167.27,167.21,29.91536933]
[1739999783490,9.97836933,167.28,167.22,9.91536933]
[1739999783676,9.97836933,167.28,167.22,89.42536933]
[1739999784596,9.97836933,167.28,167.23,5.9797]
[1739999785004,0.063,167.28,167.24,9.91536933]
[1739999785775,9.97836933,167.28,167.23,79.51]
[1739999786500,0.063,167.28,167.23,89.42536933]
[1739999786675,0.063,167.28,167.24,15.89476933]
[1739999787174,0.063,167.28,167.24,5.9794]
[1739999789513,0.063,167.28,167.24,18.64964886]
[1739999789880,9.97836933,167.28,167.23,79.51]
[1739999790077,9.91536933,167.27,167.23,79.51]
[1739999790270,9.91536933,167.27,167.23,85.4897]
[1739999790704,9.91536933,167.27,167.23,79.51]
[1739999792396,9.91536933,167.27,167.23,85.4897]
[1739999792698,9.97836933,167.28,167.23,85.4897]
[1739999793307,9.97836933,167.28,167.23,79.51]
[1739999793913,9.97836933,167.28,167.23,85.4897]
[1739999798113,9.97836933,167.28,167.23,85.5197]
[1739999798409,0.063,167.28,167.23,95.43506933]
[1739999798616,0.063,167.28,167.24,9.91536933]
[1739999799210,0.063,167.28,167.25,9.91536933]
[1739999799403,0.063,167.28,167.25,89.42536933]
[1739999799711,0.063,167.28,167.27,20.0]
[1739999801823,0.063,167.28,167.25,85.4889]
[1739999802013,0.063,167.28,167.25,79.51]
[1739999802396,0.063,167.28,167.25,85.4888]
[1739999803010,0.063,167.28,167.25,95.40416933]
[1739999803323,0.063,167.28,167.25,85.4888]
[1739999807629,0.063,167.28,167.25,95.40416933]
[1739999810114,0.063,167.28,167.25,85.4888]
[1739999812820,0.063,167.28,167.25,79.51]
[1739999814313,0.063,167.28,167.25,85.489]
[1739999814549,0.063,167.28,167.27,28.56501819]
[1739999816414,0.063,167.28,167.27,24.62794886]
[1739999817043,0.063,167.28,167.27,34.54331819]
[1739999818748,0.0001,167.28,167.27,34.54331819]
[1739999819848,0.0001,167.28,167.27,114.05331819]
[1739999820336,0.063,167.32,167.31,20.0]
[1739999820543,0.063,167.32,167.31,134.05191819]
[1739999820712,0.0001,167.34,167.32,18.64964886]
[1739999820936,0.0001,167.35,167.33,9.91536933]
[1739999821138,0.063,167.4,167.36,1.0]
[1739999821350,0.063,167.43,167.42,1.0]
[1739999821542,9.26871314,167.51,167.45,20.0]
[1739999821743,9.26871314,167.51,167.5,9.91536933]
[1739999822252,9.26871314,167.51,167.49,29.91536933]
[1739999822438,9.26871314,167.51,167.45,9.91536933]
[1739999822643,9.26871314,167.51,167.41,79.51]
[1739999822835,6.3272,167.49,167.43,20.0]
[1739999823162,9.26871314,167.51,167.48,20.0]
[1739999823333,9.26871314,167.51,167.5,9.91536933]
[1739999825142,0.2,167.51,167.48,20.0]
[1739999825456,10.11536933,167.51,167.45,95.39696933]
[1739999825757,9.91536933,167.5,167.45,79.51]
[1739999826536,9.91536933,167.48,167.42,9.91536933]
[1739999826735,0.2,167.51,167.41,5.9732]
[1739999826736,15.43963724,167.49,167.43,15.43963724]
[1739999827860,15.43963724,167.5,167.43,15.43963724]
[1739999828061,83.2,167.51,167.44,35.43963724]
[1739999828273,83.2,167.51,167.41,27.65388987]
[1739999828274,15.43963724,167.49,167.43,15.43963724]
[1739999828454,15.43963724,167.48,167.42,15.43963724]
[1739999829141,21.41013724,167.49,167.43,15.43963724]
[1739999829484,15.43963724,167.48,167.41,18.47067825]
[1739999829642,15.43963724,167.46,167.4,15.43963724]
[1739999829870,15.43963724,167.44,167.38,79.51]
[1739999830238,15.43963724,167.45,167.38,100.92403724]
[1739999830436,15.43963724,167.45,167.39,15.43963724]
[1739999830638,15.43963724,167.46,167.39,15.43963724]
[1739999830930,15.43963724,167.45,167.38,79.51]
[1739999831160,15.43963724,167.45,167.39,15.43963724]
[1739999831342,15.43963724,167.45,167.38,94.94963724]
[1739999831738,15.43963724,167.45,167.39,15.43963724]
[1739999831947,15.43963724,167.46,167.39,15.43963724]
[1739999832354,15.43963724,167.45,167.38,95.01263724]
[1739999832957,5.9722,167.44,167.38,95.01263724]
[1739999833480,15.43963724,167.43,167.38,79.573]
[1739999833850,5.9722,167.44,167.38,79.573]
[1739999833851,21.41183724,167.44,167.38,79.573]
[1739999834055,83.0,167.45,167.4,15.43963724]
[1739999834245,83.0,167.45,167.38,6.0372]
[1739999834246,83.0,167.45,167.42,15.43963724]
[1739999834448,4.62,167.46,167.42,15.43963724]
[1739999834650,5.9712,167.47,167.41,15.43963724]
[1739999834862,29.47013724,167.49,167.42,15.43963724]
[1739999835170,6.4733,167.49,167.43,15.43963724]
[1739999835467,12.4438,167.49,167.43,15.43963724]
[1739999835759,21.91293724,167.49,167.43,15.43963724]
[1739999835962,104.40983724,167.5,167.44,15.43963724]
[1739999836661,104.40983724,167.5,167.41,79.51]
[1739999836662,4.85,167.51,167.41,79.51]
[1739999836862,0.23,167.51,167.48,15.43963724]
[1739999838069,0.23,167.51,167.5,15.43963724]
[1739999838852,0.23,167.51,167.5,119.5693861]
[1739999840880,0.23,167.51,167.5,122.49803868]
[1739999841082,0.23,167.51,167.5,94.94963724]
[1739999841289,0.23,167.51,167.5,79.51]
[1739999841983,0.23,167.51,167.5,100.91973724]
[1739999842485,0.23,167.51,167.5,119.5693861]
[1739999843685,0.23,167.51,167.5,85.4801]
[1739999843985,15.43963724,167.55,167.5,85.4801]
[1739999844287,15.43963724,167.56,167.5,100.91973724]
[1739999844462,15.43963724,167.56,167.5,79.51]
[1739999844667,15.43963724,167.55,167.5,79.51]
[1739999844986,0.03,167.51,167.46,94.94963724]
[1739999845153,15.46963724,167.51,167.45,6.0346]
[1739999845515,15.46963724,167.51,167.46,15.43963724]
[1739999845516,0.03,167.51,167.46,15.43963724]
[1739999845774,0.03,167.51,167.47,15.43963724]
[1739999845952,0.03,167.51,167.48,35.43963724]
[1739999846153,0.03,167.51,167.5,15.43963724]
[1739999846961,0.03,167.51,167.5,21.40973724]
[1739999847879,0.03,167.51,167.5,119.5693861]
[1739999849976,0.03,167.51,167.5,122.57393216]
[1739999851383,0.03,167.51,167.5,100.91973724]
[1739999853889,0.03,167.51,167.5,106.91773724]
[1739999854481,15.43963724,167.57,167.51,21.40923724]
[1739999855078,88.9666,167.6,167.52,15.43963724]
[1739999855276,15.43963724,167.58,167.52,15.43963724]
[1739999855801,15.43963724,167.59,167.52,15.43963724]
[1739999856321,15.43963724,167.58,167.52,5.9693]
[1739999858885,21.40693724,167.58,167.52,5.9693]
[1739999859591,15.43963724,167.58,167.52,5.9693]
[1739999862094,21.40693724,167.58,167.52,5.9693]
[1739999862834,15.43963724,167.57,167.5,101.01063724]
[1739999862996,15.43963724,167.56,167.5,85.571]
[1739999863180,15.43963724,167.53,167.5,0.063]
[1739999863499,15.43963724,167.52,167.5,0.063]
[1739999864099,15.43963724,167.53,167.5,0.063]
[1739999866196,15.43963724,167.51,167.5,0.063]
[1739999868507,21.40933724,167.51,167.5,0.063]
[1739999869008,21.43933724,167.51,167.5,0.063]
[1739999880325,0.03,167.51,167.5,0.063]
[1739999880622,9.90999427,167.51,167.5,0.063]
[1739999881538,15.87969427,167.51,167.5,0.063]
[1739999882522,9.90999427,167.51,167.5,0.063]
[1739999882896,0.03,167.51,167.5,0.063]
[1739999883222,9.90999427,167.51,167.5,0.063]
[1739999883513,15.87969427,167.51,167.5,0.063]
[1739999883706,9.90999427,167.51,167.5,0.063]
[1739999883908,0.03,167.51,167.5,0.063]
[1739999884109,0.03,167.51,167.5,9.94299427]
[1739999884709,0.03,167.51,167.5,0.063]
[1739999888805,15.45619021,167.51,167.5,0.063]
[1739999889815,20.05619021,167.51,167.5,0.063]
[1739999890019,38.70583907,167.51,167.5,0.063]
[1739999890218,20.05619021,167.51,167.5,0.063]
[1739999890608,4.63,167.51,167.5,0.063]
[1739999891324,20.05619021,167.51,167.5,0.063]
[1739999891718,26.02589021,167.51,167.5,0.063]
[1739999893015,44.67553907,167.51,167.5,0.063]
[1739999894122,181.97553907,167.51,167.5,0.063]
[1739999897926,46.67553907,167.51,167.5,0.063]
[1739999898312,20.0,167.47,167.45,0.063]
[1739999898615,15.42619021,167.46,167.45,0.063]
[1739999898812,21.39769021,167.46,167.45,0.063]
[1739999899224,177.34733907,167.46,167.45,0.063]
[1739999899443,41.04733907,167.46,167.45,0.063]
[1739999899613,15.42619021,167.39,167.38,0.063]
[1739999900229,15.42619021,167.41,167.38,0.063]
[1739999900445,141.9,167.42,167.38,6.0374]
[1739999900446,4.6,167.42,167.38,6.0374]
[1739999900607,15.42619021,167.46,167.4,15.42619021]
[1739999901524,15.42619021,167.44,167.39,6.256]
[1739999903221,21.39849021,167.44,167.39,6.256]
[1739999904239,15.42619021,167.44,167.39,6.256]
[1739999904917,15.42619021,167.46,167.39,27.65619021]
[1739999905322,21.39779021,167.46,167.39,27.65619021]
[1739999905528,220.3,167.48,167.4,1.5029]
[1739999905730,83.0,167.48,167.42,15.42619021]
[1739999905920,98.42619021,167.48,167.42,15.42619021]
[1739999906517,98.42619021,167.48,167.41,15.42619021]
[1739999906929,104.39699021,167.48,167.41,15.42619021]
[1739999907227,15.42619021,167.47,167.4,16.92909021]
[1739999907535,15.42619021,167.47,167.4,1.5029]
[1739999907536,21.39739021,167.47,167.4,1.5029]
[1739999907904,15.42619021,167.44,167.4,1.5029]
[1739999908017,15.42619021,167.42,167.4,1.5029]
[1739999908215,15.42619021,167.41,167.38,0.063]
[1739999909127,15.42619021,167.4,167.38,0.063]
[1739999910020,15.42619021,167.41,167.38,0.063]
[1739999910339,15.42619021,167.39,167.38,0.063]
[1739999910535,34.07583907,167.39,167.38,0.063]
[1739999910736,39.67583907,167.39,167.38,0.063]
[1739999911727,45.64983907,167.39,167.38,0.063]
[1739999912634,44.64983907,167.39,167.38,0.063]
[1739999912844,45.64983907,167.39,167.38,0.063]
[1739999913218,44.64983907,167.39,167.38,0.063]
[1739999914647,45.64983907,167.39,167.38,0.063]
[1739999914830,46.64983907,167.39,167.38,0.063]
[1739999915037,46.64983907,167.39,167.33,0.063]
[1739999915038,18.64964886,167.35,167.33,0.063]
[1739999915236,15.42619021,167.34,167.33,0.063]
[1739999915913,34.07583907,167.34,167.33,0.063]
[1739999916116,35.07583907,167.34,167.33,0.063]
[1739999916746,41.05163907,167.34,167.33,0.063]
[1739999918416,40.05163907,167.34,167.33,0.063]
[1739999919137,15.42619021,167.34,167.33,0.063]
[1739999919949,15.42619021,167.36,167.33,0.063]
[1739999920142,98.42619021,167.38,167.33,0.063]
[1739999920323,83.0,167.38,167.33,15.48919021]
[1739999920521,83.0,167.38,167.34,1.6249]
[1739999920723,15.42619021,167.35,167.33,0.063]
[1739999921445,15.42619021,167.36,167.33,0.063]
[1739999922432,15.42619021,167.35,167.33,0.063]
[1739999923084,83.0,167.38,167.33,0.063]
[1739999923085,15.42619021,167.36,167.33,0.063]
[1739999923639,15.42619021,167.35,167.33,0.063]
[1739999925250,21.40159021,167.36,167.33,0.063]
[1739999925616,15.42619021,167.36,167.33,0.063]
[1739999926917,21.40129021,167.36,167.33,0.063]
[1739999928040,15.42619021,167.36,167.33,0.063]
[1739999928623,98.42619021,167.37,167.33,0.063]
[1739999930250,104.40099021,167.37,167.33,0.063]
[1739999931960,98.42619021,167.37,167.33,0.063]
[1739999932256,83.0,167.37,167.33,0.063]
[1739999933029,170.88434886,167.4,167.33,15.48919021]
[1739999933030,235.72619021,167.4,167.33,15.48919021]
[1739999933244,235.72619021,167.4,167.34,15.42619021]
[1739999933465,235.72619021,167.4,167.33,35.48919021]
[1739999933757,220.3,167.4,167.35,15.42619021]
[1739999934029,220.3,167.4,167.37,5.9747]
[1739999934137,15.42619021,167.42,167.37,5.9747]
[1739999935737,15.42619021,167.42,167.36,21.40119021]
[1739999939748,15.45619021,167.42,167.36,21.40119021]
[1739999942473,0.03,167.42,167.38,15.42619021]
[1739999942672,0.03,167.42,167.37,6.3859]
[1739999942673,0.03,167.42,167.4,1.5312]
[1739999942870,0.03,167.42,167.4,11.41501132]
[1739999943341,0.03,167.42,167.41,9.88381132]
[1739999944471,0.03,167.42,167.4,11.41501132]
[1739999944646,0.03,167.42,167.4,1.5312]
[1739999945469,0.03,167.42,167.41,15.44456172]
[1739999946349,0.03,167.42,167.41,21.41786172]
[1739999946547,0.03,167.42,167.4,1.5312]
[1739999947131,15.47456172,167.42,167.37,6.3859]
[1739999947461,15.44456172,167.38,167.36,1.5523]
[1739999947658,15.44456172,167.37,167.33,0.063]
[1739999947863,15.44456172,167.36,167.33,0.063]
[1739999948107,15.44456172,167.38,167.33,6.0389]
[1739999948370,98.44456172,167.39,167.33,21.48346172]
[1739999949470,15.44456172,167.37,167.33,0.063]
[1739999951871,15.44456172,167.36,167.33,0.063]
[1739999952465,15.44456172,167.37,167.33,0.063]
[1739999953374,83.0,167.39,167.34,15.44456172]
[1739999953968,83.0,167.39,167.33,15.50756172]
[1739999954163,15.44456172,167.37,167.33,0.063]
[1739999954391,15.44456172,167.38,167.33,0.063]
[1739999955460,98.44456172,167.39,167.33,0.063]
[1739999955867,98.44456172,167.39,167.33,15.50756172]
[1739999956985,98.44456172,167.39,167.34,5.9758]
[1739999958781,83.0,167.39,167.35,15.44456172]
[1739999958975,83.0,167.39,167.36,15.44456172]
[1739999959585,0.03,167.42,167.37,5.9747]
[1739999959772,15.44456172,167.4,167.34,94.95456172]
[1739999959975,15.44456172,167.39,167.34,85.4856]
[1739999960177,6.003,167.42,167.34,79.51]
[1739999960178,15.44456172,167.37,167.34,79.51]
[1739999960378,15.44456172,167.37,167.33,0.063]
[1739999960579,15.44456172,167.37,167.33,6.0391]
[1739999961490,98.44456172,167.4,167.33,21.48366172]
[1739999961687,98.44456172,167.4,167.33,36.42416172]
[1739999961886,15.44456172,167.39,167.33,21.48366172]
[1739999963269,15.44456172,167.38,167.33,0.063]
[1739999965593,15.44456172,167.37,167.33,0.063]
[1739999965905,98.44456172,167.36,167.33,0.063]
[1739999966073,15.44456172,167.35,167.33,0.063]
[1739999967099,98.44456172,167.36,167.33,0.063]
[1739999970497,15.44456172,167.34,167.33,0.063]
[1739999972443,21.42036172,167.34,167.33,0.063]
[1739999972883,15.44456172,167.34,167.33,0.063]
[1739999976213,21.42036172,167.34,167.33,0.063]
[1739999976621,15.87511418,167.34,167.33,0.063]
[1739999976909,9.89931418,167.34,167.33,0.063]
[1739999977407,15.87511418,167.34,167.33,0.063]
[1739999977608,34.52476304,167.34,167.33,0.063]
[1739999980120,137.3,167.33,167.28,0.063]
[1739999980382,9.89931418,167.29,167.28,0.063]
[1739999981510,15.87691418,167.29,167.28,0.063]
[1739999981688,9.89931418,167.3,167.28,0.063]
[1739999982116,9.89931418,167.29,167.28,0.063]
[1739999982598,15.4770695,167.29,167.28,0.063]
[1739999983615,21.4546695,167.29,167.28,0.063]
[1739999983911,18.64964886,167.28,167.23,0.03]
[1739999984215,15.4770695,167.24,167.23,0.03]
[1739999984521,38.72671836,167.24,167.23,0.03]
[1739999985311,21.0,167.22,167.21,0.063]
[1739999985622,76.58388786,167.22,167.21,0.063]
[1739999985916,77.58388786,167.22,167.21,0.063]
[1739999987116,62.10681836,167.22,167.21,0.063]
[1739999987300,60.10681836,167.22,167.21,0.063]
[1739999989897,40.10681836,167.22,167.21,0.063]
[1739999990716,15.4770695,167.22,167.21,0.063]
[1739999994915,15.4770695,167.24,167.21,0.063]
[1739999995111,83.0,167.25,167.21,1.7206]
[1739999996530,15.4770695,167.26,167.21,1.7206]
[1739999996837,15.4770695,167.26,167.21,7.7007]
[1739999997732,15.4770695,167.26,167.21,1.7206]
[1739999999035,0.03,167.25,167.21,1.7206]
[1739999999216,0.03,167.25,167.21,7.701]
[1740000000767,0.03,167.25,167.21,1.7206]
[1740000000768,15.5070695,167.25,167.21,1.7206]
[1740000000929,15.4770695,167.24,167.21,1.7206]
[1740000001328,15.5070695,167.25,167.21,7.7009]
[1740000001531,0.03,167.25,167.21,7.7009]
[1740000002842,15.5070695,167.25,167.21,7.7009]
[1740000003131,15.5070695,167.25,167.21,1.7206]
[1740000003918,15.4770695,167.22,167.21,0.063]
[1740000006034,15.4770695,167.23,167.21,0.063]
[1740000006215,15.4770695,167.22,167.21,0.063]
[1740000009732,21.4571695,167.22,167.21,0.063]
[1740000010316,4.6,167.23,167.21,0.063]
[1740000010526,15.4770695,167.22,167.21,0.063]
[1740000011927,21.4571695,167.22,167.21,0.063]
[1740000012313,15.4770695,167.22,167.21,0.063]
[1740000012634,9.91286445,167.22,167.21,0.063]
[1740000013320,28.56251331,167.22,167.21,0.063]
[1740000013727,171.84261331,167.22,167.21,0.063]
[1740000015235,20.0,167.18,167.17,0.03]
[1740000015437,29.91286445,167.18,167.17,0.03]
[1740000016340,48.56251331,167.18,167.17,0.03]
[1740000017318,54.54401331,167.18,167.17,0.03]
[1740000018739,60.13190944,167.18,167.17,0.03]
[1740000018955,197.43190944,167.18,167.17,0.03]
[1740000021230,199.43190944,167.18,167.13,0.03]
[1740000021440,15.50076058,167.14,167.13,0.03]
[1740000022736,21.48376058,167.14,167.13,0.03]
[1740000027060,15.50076058,167.14,167.13,0.03]
[1740000027259,152.80076058,167.15,167.13,0.03]
[1740000027641,15.50076058,167.14,167.13,0.03]
[1740000029553,21.48376058,167.14,167.13,0.03]
[1740000030763,15.50076058,167.14,167.13,0.03]
[1740000031759,21.48376058,167.14,167.13,0.03]
[1740000033416,15.50076058,167.14,167.13,0.03]
[1740000034254,21.48376058,167.14,167.13,0.03]
[1740000036269,40.13340944,167.14,167.13,0.03]
[1740000036487,40.13340944,167.14,167.11,0.03]
[1740000036488,20.64964886,167.12,167.11,0.03]
[1740000036768,51.65117002,167.12,167.11,0.03]
[1740000036947,49.65117002,167.12,167.11,0.03]
[1740000037149,15.50076058,167.12,167.11,0.03]
[1740000037366,20.10076058,167.14,167.11,0.03]
[1740000038355,15.50076058,167.13,167.11,0.03]
[1740000040281,83.0,167.12,167.11,0.03]
[1740000046275,92.92262484,167.12,167.11,0.03]
[1740000052186,10.583,167.14,167.11,0.03]
[1740000052187,83.0,167.14,167.11,0.03]
[1740000052508,0.03,167.17,167.13,9.92262484]
[1740000052798,0.03,167.17,167.16,9.92262484]
[1740000053516,0.03,167.17,167.16,15.90482484]
[1740000054689,0.03,167.17,167.16,5.9822]
[1740000055355,0.03,167.17,167.14,6.0546]
[1740000055592,9.95262484,167.17,167.14,6.0546]
[1740000055885,0.03,167.17,167.14,6.0546]
[1740000056460,9.95262484,167.17,167.12,1.5066]
[1740000057488,0.03,167.17,167.13,9.92262484]
[1740000058273,0.03,167.17,167.16,9.92262484]
[1740000059200,0.03,167.17,167.16,15.90482484]
[1740000059495,0.03,167.2,167.16,118.36632484]
[1740000059667,0.03,167.2,167.19,9.92262484]
[1740000060698,0.03,167.2,167.19,21.45996288]
[1740000061588,83.0,167.27,167.22,20.0]
[1740000061785,83.0,167.27,167.23,15.47876288]
[1740000062182,83.0,167.27,167.22,35.47876288]
[1740000062885,83.0,167.27,167.23,21.45846288]
[1740000063200,83.0,167.27,167.2,1.6413]
[1740000063201,15.47876288,167.26,167.21,5.9801]
[1740000063375,15.47876288,167.24,167.2,1.6413]
[1740000063692,15.47876288,167.21,167.16,6.366]
[1740000063925,83.0,167.2,167.11,0.03]
[1740000064082,15.47876288,167.15,167.12,5.9837]
[1740000064292,15.47876288,167.14,167.11,0.03]
[1740000064473,15.47876288,167.15,167.11,6.014]
[1740000064669,98.47876288,167.17,167.11,6.014]
[1740000064879,83.0,167.17,167.12,15.47876288]
[1740000065074,98.47876288,167.17,167.11,21.49276288]
[1740000065276,15.47876288,167.15,167.11,0.03]
[1740000065888,15.47876288,167.18,167.12,15.47876288]
[1740000066297,20.07876288,167.19,167.13,35.47876288]
[1740000066895,20.07876288,167.19,167.14,5.983]
[1740000067135,15.47876288,167.2,167.14,21.46176288]
[1740000067394,0.03,167.25,167.19,15.47876288]
[1740000067590,0.03,167.25,167.21,15.47876288]
[1740000067791,0.03,167.25,167.22,15.47876288]
[1740000067977,0.03,167.25,167.21,15.47876288]
[1740000069179,0.03,167.25,167.19,82.2796]
[1740000069180,0.03,167.25,167.22,35.47876288]
[1740000069591,0.03,167.25,167.22,20.0]
[1740000070704,0.03,167.25,167.22,35.47876288]
[1740000070902,0.03,167.25,167.24,15.47876288]
[1740000071075,0.03,167.25,167.23,15.47876288]
[1740000071512,0.03,167.25,167.24,5.9794]
[1740000072375,0.03,167.25,167.23,5.9797]
[1740000074205,0.03,167.25,167.23,21.45846288]
[1740000074413,0.03,167.25,167.23,5.9797]
[1740000074997,0.03,167.25,167.22,20.0]
[1740000075375,0.03,167.25,167.22,41.45856288]
[1740000075695,0.03,167.25,167.24,15.47876288]
[1740000075878,0.03,167.25,167.24,21.45816288]
[1740000076211,0.03,167.25,167.23,15.47876288]
[1740000076493,0.03,167.25,167.22,20.0]
[1740000077301,0.03,167.25,167.22,25.98]
[1740000078216,0.03,167.25,167.22,41.45876288]
[1740000078585,0.03,167.25,167.23,15.47876288]
[1740000079679,0.03,167.25,167.24,5.9794]
[1740000079880,0.03,167.25,167.23,5.9797]
[1740000080134,0.03,167.25,167.22,20.0]
[1740000080309,0.03,167.25,167.22,25.9801]
[1740000082612,0.03,167.25,167.22,41.45886288]
[1740000084294,0.03,167.25,167.23,15.47876288]
[1740000085832,0.03,167.25,167.24,15.47876288]
[1740000087009,0.03,167.25,167.24,21.45816288]
[1740000090331,0.0001,167.25,167.24,40.10781174]
[1740000090535,0.0001,167.25,167.24,41.70371174]
[1740000090827,0.0001,167.25,167.24,122.40371174]
[1740000091133,0.0001,167.25,167.24,124.76220952]
[1740000091998,0.0001,167.25,167.24,122.40371174]
[1740000092521,0.0001,167.25,167.24,123.40371174]
[1740000092746,0.03,167.34,167.31,20.0]
[1740000092925,0.03,167.34,167.33,15.47876288]
[1740000093301,0.03,167.34,167.32,35.47876288]
[1740000093712,0.03,167.34,167.32,20.0]
[1740000094407,0.03,167.34,167.31,5.9768]
[1740000096123,0.03,167.34,167.3,5.9772]
[1740000096527,0.03,167.34,167.31,15.47876288]
[1740000097503,0.03,167.34,167.33,15.47876288]
[1740000098215,0.03,167.34,167.33,21.45496288]
[1740000098413,0.03,167.34,167.33,5.9762]
[1740000101201,0.03,167.34,167.31,15.47876288]
[1740000101406,0.03,167.34,167.31,21.45536288]
[1740000101828,0.03,167.34,167.33,35.47876288]
[1740000102323,0.03,167.34,167.33,41.45496288]
[1740000102511,15.03876288,167.38,167.33,25.9762]
[1740000102714,15.50876288,167.39,167.33,41.45496288]
[1740000103036,0.03,167.39,167.34,15.47876288]
[1740000104442,0.03,167.39,167.35,5.9755]
[1740000106525,0.03,167.39,167.37,15.47876288]
[1740000106915,15.47876288,167.43,167.35,101.6142]
[1740000107116,15.47876288,167.43,167.37,15.47876288]
[1740000107319,15.47876288,167.43,167.36,15.47876288]
[1740000107721,15.47876288,167.43,167.37,5.9747]
[1740000108325,15.47876288,167.43,167.37,21.45346288]
[1740000109127,0.03,167.45,167.4,15.47876288]
[1740000109844,0.03,167.45,167.41,15.47876288]
[1740000110338,0.03,167.45,167.41,20.0]
[1740000111653,0.03,167.45,167.41,25.9732]
[1740000111943,0.03,167.45,167.41,41.45196288]